Cogmind - Beta 12 X1 @@@ ROGUE MODE // 2022.08.19 @ 12:47:36 Player: Momo Result: Destroyed by Z-Imprinter with Zionite Laser-M Performance ------------- Evolutions (1) 500 Regions Visited (6) 1200 Robots Destroyed (37) 185 Value Destroyed (927) 927 Prototype IDs (8) 160 Alien Tech Used (0) 0 Bonus (-538) -538 TOTAL SCORE: 2434 Bonus ------- High Alert Combat Kills 26 Follower Combat Kills 171 Met Imprinter 300 Friendly Fire -1035 Cogmind --------- Core Integrity 0/400 Matter 121/300 Energy 100/100 System Corruption 0% Temperature Cool (9) Movement Core (200) Ox3 Location -7/Deep Caves Parts ------- > --- POWER (1) -------- (None) > --- PROPULSION (2) --- (None) > --- UTILITY (2) ------ Improved Heat Sink Tactical Coordination Suite > --- WEAPON (4) ------- Advanced Assault Cannon > --- INVENTORY (5) ---- Experimental Sensor Array Mobile Refinery Mk. CCLXVII Hacking Drone Bay (1/1) Peak State ------------ > --- POWER ------------ Ion Engine > --- PROPULSION ------- Wheel Compact Wheel > --- UTILITY ---------- Large Storage Unit Hacking Drone Bay > --- WEAPON ----------- Slug Cannon Bore Cannon Bore Cannon Phasing Sabre > --- INVENTORY -------- Improved Heat Sink Experimental Sensor Array Decoy Drone Bay Bomb Factory No. 2 Heavy Explosive Trap Heavy Explosive Trap Heavy Explosive Trap Heavy Explosive Trap Heavy Explosive Trap [Rating: 37] Favorites ----------- Power Ion Engine Engine Ion Engine Power Core Light Nuclear Core Propulsion Wheel Wheel Wheel Utility Large Storage Unit Device Improved Heat Sink Storage Large Storage Unit Processor Targeting Computer Protection Light Armor Plating Weapon Bore Cannon Energy Cannon Beam Cannon Ballistic Gun Light Assault Rifle Ballistic Cannon Bore Cannon Launcher Mini Grenade Launcher Impact Weapon Powered Hammer Slashing Weapon Phasing Sabre Build | -11 -10 -10 -9 -9 -7 -7 ------- Run | Scr Mat Min Mat Min Zio Dee Slots Evolved 2 | . . . 2 . . . Power . | . . . . . . . Propulsion . | . . . . . . . Utility . | . . . . . . . Weapon 2 | . . . 2 . . . Parts Attached 53 | 4 6 6 13 . 17 7 Power 5 | 1 1 1 1 . 1 . Engine 4 | 1 1 1 . . 1 . Core 1 | . . . 1 . . . Reactor . | . . . . . . . Propulsion 6 | 2 1 2 1 . . . Treads . | . . . . . . . Leg . | . . . . . . . Wheel 6 | 2 1 2 1 . . . Hover . | . . . . . . . Flight . | . . . . . . . Utility 24 | 1 2 3 4 . 9 5 Device 15 | . . 1 1 . 8 5 Storage 4 | 1 . 1 1 . 1 . Processor 1 | . 1 . . . . . Hackware . | . . . . . . . Protection 4 | . 1 1 2 . . . Artifact . | . . . . . . . Weapon 18 | . 2 . 7 . 7 2 Energy Gun . | . . . . . . . Energy Cannon 5 | . . . 5 . . . Ballistic Gun 1 | . . . 1 . . . Ballistic Cannon 7 | . 2 . . . 4 1 Launcher 1 | . . . . . . 1 Special Weapon . | . . . . . . . Impact Weapon 1 | . . . . . 1 . Slashing Weapon 3 | . . . 1 . 2 . Piercing Weapon . | . . . . . . . Special Melee Weapon . | . . . . . . . Unidentified Prototypes 6 | . . 1 1 . 4 . Parts Lost 18 | . 4 2 4 . . 8 Power 3 | . 1 1 . . . 1 Propulsion 6 | . 2 1 1 . . 2 Utility 3 | . 1 . 1 . . 1 Weapon 6 | . . . 2 . . 4 Highest Loss Streak 8 | . 3 1 2 . . 8 To Critical Strikes . | . . . . . . . Average Slot Usage (%) 92 | . 63 96 97 88 91 90 Engine 10 | . 10 13 8 . 10 10 Core 1 | . . . 2 11 . . Wheel 22 | . 18 25 21 22 22 19 Device 3 | . . . 2 . 3 14 Storage 11 | . 14 13 11 11 10 4 Protection 5 | . 3 13 8 11 . . Energy Cannon 10 | . . . 30 33 6 . Ballistic Cannon 22 | . 14 28 8 . 27 40 Slashing Weapon 3 | . . . 1 . 8 . Naked Turns . | . . . . . . . Heaviest Build 61 | 10 17 19 41 39 61 61 Greatest Support 26 | 20 20 26 26 26 26 26 Greatest Overweight (x) 4 | 1 4 1 1 1 2 2 Average Overweight (x) . | . . . . 1 1 1 Largest Inventory Capacity 15 | 8 8 8 15 15 15 15 Average Capacity 11 | 7 8 7 9 15 14 9 Most Carried 15 | . 2 7 8 13 15 15 Average Carried 9 | . . 4 7 10 13 8 Final Capacity 15 | 8 8 8 15 15 15 5 Final Carried 15 | . 1 7 8 13 15 3 Class Distribution -------------------- 40% | Mutant 34% | Derelict-Gunner 11% | Tank 6% | Gunner 6% | Derelict-Mutant Dominant Class ---------------- Mutant | -10/Materials Mutant | -10/Mines Tank | -9/Materials Mutant | -9/Mines Derelict-Gunner | -7/Zion Derelict-Gunner | -7/Deep Caves Resources | -11 -10 -10 -9 -9 -7 -7 ----------- Run | Scr Mat Min Mat Min Zio Dee Matter Collected 1239 | 229 110 214 299 . 178 209 Remotely . | . . . . . . . Salvage Created 1017 | . 163 114 650 . . 90 Parts 67 | . 13 11 38 . . 5 Haulers Intercepted . | . . . . . . . Recyclers Shooed 1 | . . . 1 . . . Parts Field Recycled . | . . . . . . . Retrieved Matter . | . . . . . . . Parts Self-Destructed . | . . . . . . . Prevented . | . . . . . . . Kills | -11 -10 -10 -9 -9 -7 -7 ------- Run | Scr Mat Min Mat Min Zio Dee Combat Hostiles Destroyed 34 | . 7 6 18 . . 3 Melee 2 | . . . 2 . . . Guns 1 | . . . 1 . . . Cannons 31 | . 7 6 15 . . 3 Classes Destroyed 9 | . 3 1 3 . . 2 Worker 1 | . . . 1 . . . Recycler 1 | . 1 . . . . . Operator 1 | . . . 1 . . . Swarmer 14 | . 6 2 6 . . . Grunt 9 | . 1 3 5 . . . Sentry 7 | . . . 7 . . . Z-Technician 4 | . . . . . . 4 Z-Light 2 | . . . . . . 2 Assembled 2 | . . 1 . . . 1 Savage 2 | . . . . . . 2 Best Kill Streak 8 | . 8 2 5 . . 4 Combat Bots Only 5 | . 5 2 5 . . 2 Max Kills in Single Turn 5 | . 1 1 1 . . 5 Gunslinging . | . . . . . . . Exploded . | . . . . . . . Melee 1 | . . . 1 . . . Uniques/NPCs Destroyed . | . . . . . . . Combat | -11 -10 -10 -9 -9 -7 -7 -------- Run | Scr Mat Min Mat Min Zio Dee Damage Taken 2510 | . 319 209 821 . . 1161 Core 494 | . 67 27 130 . . 270 Absorbed by Shields . | . . . . . . . Core Remaining (%) 81 | 100 . 62 . . . . Volleys Fired 111 | . 32 22 38 . . 19 Largest 4 | . 1 2 4 . . 4 Hottest 256 | . 35 70 256 . . 210 Shots Fired 248 | . 32 44 120 . . 52 Gun 8 | . . . 8 . . . Cannon 240 | . 32 44 112 . . 52 Launcher . | . . . . . . . Special . | . . . . . . . Kinetic 161 | . 32 44 33 . . 52 Thermal 87 | . . . 87 . . . Explosive . | . . . . . . . Electromagnetic . | . . . . . . . Robot Hit Streak 8 | . 3 4 8 . . 2 Robot Miss Streak 8 | . 4 6 6 . . 8 Penetration Max 1 | . . . . . . 1 Secondary Targets . | . . . . . . . Shots Hit Robots 111 | . 15 21 62 . . 13 Core Hits 54 | . 6 8 28 . . 12 Critical Kills 2 | . . . . . . 2 Critical Parts Destroyed 1 | . . . . . . 1 Critical Strikes 10 | . 2 2 2 . . 4 Destroy 4 | . . . . . . 4 Blast 6 | . 2 2 2 . . . Melee Attacks 24 | . . . 5 . 19 . Impact 17 | . . . . . 17 . Slashing 7 | . . . 5 . 2 . Piercing . | . . . . . . . Sneak Attacks . | . . . . . . . Combat Hostiles . | . . . . . . . Follow-up Attacks . | . . . . . . . Damage Inflicted 4472 | . 276 373 1163 . . 2660 Guns 59 | . . . 59 . . . Cannons 2234 | . 276 373 1035 . . 550 Explosions 2110 | . . . . . . 2110 Melee 69 | . . . 69 . . . Ramming . | . . . . . . . Kinetic 1516 | . 276 373 317 . . 550 Thermal 2887 | . . . 777 . . 2110 Explosive . | . . . . . . . Electromagnetic . | . . . . . . . Impact . | . . . . . . . Slashing 69 | . . . 69 . . . Piercing . | . . . . . . . Highest Corruption . | . . . . . . . Average Corruption . | . . . . . . . Corruption Purged . | . . . . . . . Corruption Blocked . | . . . . . . . Overload Shots . | . . . . . . . Overflow Damage 397 | . . . . . . 397 Projectiles 13 | . . . . . . 13 Explosions 384 | . . . . . . 384 Melee . | . . . . . . . Knockbacks 10 | . 5 3 1 . . 1 Impact . | . . . . . . . Kinetic 10 | . 5 3 1 . . 1 Secondary . | . . . . . . . Self-Inflicted Damage . | . . . . . . . Shots . | . . . . . . . Rammed . | . . . . . . . Targets Rammed . | . . . . . . . Kicked . | . . . . . . . Crushed . | . . . . . . . Highest Temperature 474 | . 3 159 474 . . 458 Average Temperature 136 | . 3 44 155 . . 184 Received Heat Transfer 639 | . 72 96 165 . . 306 Effects 5 | . . . 5 . . . Shutdowns 1 | . . . 1 . . . Energy Bleed 1 | . . . 1 . . . Interference 3 | . . . 3 . . . Siege Activations . | . . . . . . . Robots Corrupted . | . . . . . . . Combat Hostiles . | . . . . . . . Parts Fried . | . . . . . . . Impact Corruptions . | . . . . . . . Robots Melted . | . . . . . . . Combat Hostiles . | . . . . . . . Parts Melted 4 | . . 1 3 . . . Heat Transferred 1517 | . . . 1517 . . . Parts Sabotaged . | . . . . . . . Parts Stolen . | . . . . . . . Parts Stripped . | . . . . . . . Power Chain Reactions . | . . . . . . . Missiles Intercepted . | . . . . . . . Alert | -11 -10 -10 -9 -9 -7 -7 ------- Run | Scr Mat Min Mat Min Zio Dee Peak Influence 571 | . 173 238 571 163 . . Initial 163 | . . 67 33 163 . . Average 188 | . 95 128 261 163 . . Maximum Alert Level 2 | . . 1 2 . . . Low Security (%) 61 | 100 100 82 34 100 . . Level 1 30 | . . 17 48 . . . Level 2 8 | . . . 17 . . . Level 3 . | . . . . . . . Level 4 . | . . . . . . . Level 5 . | . . . . . . . High Security . | . . . . . . . Max Security . | . . . . . . . Squads Dispatched 4 | . 1 . 3 . . . Investigation 1 | . . . 1 . . . Extermination . | . . . . . . . Reinforcement 3 | . 1 . 2 . . . Assault . | . . . . . . . Garrison . | . . . . . . . Intercept . | . . . . . . . Searches Triggered . | . . . . . . . Construction Impeded . | . . . . . . . Haulers Reinforced . | . . . . . . . Active Scanning Responses . | . . . . . . . Cargo Convoy Interrupts . | . . . . . . . Stealth | -11 -10 -10 -9 -9 -7 -7 --------- Run | Scr Mat Min Mat Min Zio Dee Distress Signals 3 | . 1 . 2 . . . Communications Jammed . | . . . . . . . Distress Signals . | . . . . . . . Times Spotted 65 | . 12 9 38 . . 6 Peak Tracking Total 6 | . 6 3 6 . . 3 Tactical Retreats 2 | . . 2 . . . . Traps | -11 -10 -10 -9 -9 -7 -7 ------- Run | Scr Mat Min Mat Min Zio Dee Traps Triggered 2 | . . . 2 . . . Indirectly . | . . . . . . . Trap Hack Attempts . | . . . . . . . Triggered . | . . . . . . . Disarmed . | . . . . . . . Reprogrammed . | . . . . . . . Reused 1 | . . . . . . 1 Traps Extracted . | . . . . . . . Installed 4 | . . . . . . 4 Triggered . | . . . . . . . Most Traps Carried 5 | . . . . 5 5 4 Machines | -11 -10 -10 -9 -9 -7 -7 ---------- Run | Scr Mat Min Mat Min Zio Dee Machines Disabled 6 | . . . 3 . . 3 Max in Single Turn 1 | . . . 1 . . 1 Machines Sabotaged . | . . . . . . . Garrisons Compromised . | . . . . . . . Overloaded Fab Kills . | . . . . . . . Hacking | -11 -10 -10 -9 -9 -7 -7 --------- Run | Scr Mat Min Mat Min Zio Dee Machines Accessed 2 | . . 1 1 . . . Terminals 1 | . . . 1 . . . Fabricators . | . . . . . . . Repair Stations . | . . . . . . . Recycling Units . | . . . . . . . Scanalyzers . | . . . . . . . Garrison Access . | . . . . . . . Total Hacks 6 | . . 1 5 . . . Successful 4 | . . 1 3 . . . Failed 2 | . . . 2 . . . Catastrophic . | . . . . . . . Database Lockouts . | . . . . . . . Manual . | . . . . . . . Terminals 5 | . . . 5 . . . Fabricators . | . . . . . . . Repair Stations . | . . . . . . . Recycling Units . | . . . . . . . Scanalyzers . | . . . . . . . Garrison Access . | . . . . . . . Terminal Hacks 4 | . . 1 3 . . . Prototype ID Bank 1 | . . . 1 . . . Open Door 1 | . . 1 . . . . Unreport Threat 1 | . . . 1 . . . Zone Layout 1 | . . . 1 . . . Fabricator Hacks . | . . . . . . . Repair Station Hacks . | . . . . . . . Recycling Unit Hacks . | . . . . . . . Scanalyzer . | . . . . . . . Garrison Access Hacks . | . . . . . . . Unauthorized Hacks . | . . . . . . . Terminals . | . . . . . . . Fabricators . | . . . . . . . Repair Stations . | . . . . . . . Recycling Units . | . . . . . . . Scanalyzers . | . . . . . . . Garrison Access . | . . . . . . . Data Cores Recovered . | . . . . . . . Used . | . . . . . . . Hacking Detections . | . . . . . . . Full Trace Events . | . . . . . . . Feedback Events . | . . . . . . . Feedback Blocked . | . . . . . . . Robot Schematics Acquired . | . . . . . . . Robots Built . | . . . . . . . Authchips . | . . . . . . . Time . | . . . . . . . Total Robot Build Rating . | . . . . . . . Part Schematics Acquired . | . . . . . . . Parts Built . | . . . . . . . Authchips . | . . . . . . . Time . | . . . . . . . Total Part Build Rating . | . . . . . . . Parts Repaired . | . . . . . . . Time . | . . . . . . . Parts Recycled . | . . . . . . . Recycled Matter . | . . . . . . . Retrieved Matter . | . . . . . . . Retrieved Components . | . . . . . . . Parts Scanalyzed . | . . . . . . . Part Schematics Acquired . | . . . . . . . Parts Damaged . | . . . . . . . Bothacking | -11 -10 -10 -9 -9 -7 -7 ------------ Run | Scr Mat Min Mat Min Zio Dee Used RIF Installer . | . . . . . . . Robots Hacked . | . . . . . . . Non-combat . | . . . . . . . Combat . | . . . . . . . Robot Hacks Applied . | . . . . . . . Relay Couplers Released . | . . . . . . . Fabnet Peak Effective % . | . . . . . . . Robots Rewired . | . . . . . . . Allies Hacked . | . . . . . . . Hacks Repelled . | . . . . . . . Allies | -11 -10 -10 -9 -9 -7 -7 -------- Run | Scr Mat Min Mat Min Zio Dee Total Allies 6 | . . 3 . . 3 . Largest Group 3 | . . 3 3 . 3 3 Highest-Rated Group 71 | . . 40 40 . 71 71 Highest-Rated Ally 31 | . . 16 16 . 31 31 Total Orders . | . . . . . . . Ally Attacks 67 | . . 12 44 . . 11 Total Damage 735 | . . 150 439 . . 146 Kills 15 | . . 2 10 . . 3 Allies Corrupted . | . . . . . . . Allies Melted . | . . . . . . . Intel | -11 -10 -10 -9 -9 -7 -7 ------- Run | Scr Mat Min Mat Min Zio Dee Robot Analysis Total . | . . . . . . . Derelict Logs Recovered 2 | . . 1 . . 1 . Drone Launches . | . . . . . . . Drone Recoveries . | . . . . . . . Exploration | -11 -10 -10 -9 -9 -7 -7 ------------- Run | Scr Mat Min Mat Min Zio Dee Turns Passed 3286 | 36 169 591 805 54 1403 228 Spaces Moved 2613 | 38 105 533 674 47 1100 116 Core 5 | 3 2 . . . . . Treads . | . . . . . . . Legs . | . . . . . . . Wheels 2608 | 35 103 533 674 47 1100 116 Hover . | . . . . . . . Flight . | . . . . . . . Fastest Speed 50 | 50 80 90 90 105 90 105 Average Speed 104 | 78 90 93 93 105 116 113 Slowest Speed 250 | 100 250 115 105 105 120 120 Overloaded Moves . | . . . . . . . Propulsion Burnouts . | . . . . . . . Robots Hopped . | . . . . . . . Cave-ins Triggered . | . . . . . . . Exploration Rate (%) 45 | 4 28 92 72 17 86 22 Regions Visited 6 Branch Regions 4 Pre-discovered Areas 2 | . . . . . 2 . Known Exits Taken . | . . . . . . . Unknown Exits Taken 6 | 1 1 1 1 1 1 . Scrap Searched 5 | . . 1 . . 4 . Spaces Dug 3 | . . . . . 3 . Terrain Destroyed 16 | . . . . . 3 13 Melee 3 | . . . . . 3 . Projectile 13 | . . . . . . 13 AOE . | . . . . . . . Terrain Rammed . | . . . . . . . Walls Destroyed . | . . . . . . . Machines Disabled . | . . . . . . . Actions | -11 -10 -10 -9 -9 -7 -7 --------- Run | Scr Mat Min Mat Min Zio Dee Total 2945 | 41 144 581 758 51 1191 179 Wait 77 | . . 12 17 . 27 21 Move 2607 | 37 104 532 673 46 1099 116 Hop . | . . . . . . . Pick Up 27 | . 2 6 5 5 9 . Fast Attach 33 | 4 5 4 7 . 10 3 Attach 12 | . 1 2 2 . 4 3 Detach 5 | . . 1 . . 3 1 Swap 8 | . . . 4 . 3 1 Drop 37 | . . 2 7 . 17 11 Fire 111 | . 32 22 38 . . 19 Melee 24 | . . . 5 . 19 . Ram . | . . . . . . . Kick . | . . . . . . . Crush . | . . . . . . . Escape Stasis . | . . . . . . . Rewire . | . . . . . . . Trap 4 | . . . . . . 4 Miscellaneous . | . . . . . . . Route ------- -11/Scrapyard -10/Materials -10/Mines (discovered 2 exits: *Mat x2) -9/Materials (discovered 4 exits: *Mat x3 / [*Min]) -9/Mines -7/Zion (discovered 2 exits: [*Dee] / [*Pro]) -7/Deep Caves History --------- Turn | Location | Event 18 | -11/Scrapyard | Discovered new exit (range 16) 37 | -11/Scrapyard | Entered Materials 133 | -10/Materials | Lost 3 parts (2n1u) 164 | -10/Materials | Discovered new exit (range 15) 206 | -10/Materials | Entered Mines 271 | -10/Mines | Assisted by bots powering up and referring to "LRC-V3" 310 | -10/Mines | Discovered new exit (range 4) 316 | -10/Mines | Build established: Mutant 320 | -10/Mines | Found the Drone Emporium 325 | -10/Mines | Found Prototype Device 327 | -10/Mines | Identified Decoy Drone Bay 393 | -10/Mines | Assembled infested the area 398 | -10/Mines | Assisted by a Guerilla fighting off Assembled 596 | -10/Mines | Found a damaged Exp. Sensor Array with a note attached 598 | -10/Mines | Found Prototype Device 618 | -10/Mines | Learned 4 Materials zone layouts 784 | -10/Mines | Discovered new exit (range 5) 797 | -10/Mines | Entered Materials 797 | -9/Materials | Accompanied by 3 allies 797 | -9/Materials | Evolved 2 slots: Weapon x2 798 | -9/Materials | Identified exit to Materials 1024 | -9/Materials | Discovered exit to Materials (range 15) 1181 | -9/Materials | Discovered exit to Materials (range 15) 1586 | -9/Materials | Discovered new exit (range 16) 1602 | -9/Materials | Entered Mines 1619 | -9/Mines | Found a hidden stash of uninstalled traps 1648 | -9/Mines | A Derelict revealed a hidden shortcut to a safe place 1656 | -9/Mines | Entered Zion 1726 | -7/Zion | Discovered new exit (range 11) 1746 | -7/Zion | Identified Exp. Sensor Array 1752 | -7/Zion | Found Prototype Device 1752 | -7/Zion | Identified Bomb Factory No. 2 1870 | -7/Zion | Learned location of Recycling (-7) 1907 | -7/Zion | Given the Hacking Drone Bay 1960 | -7/Zion | Found Prototype Device 1960 | -7/Zion | Identified Hacking Drone Bay 2046 | -7/Zion | Found Prototype Device 2046 | -7/Zion | Identified Mobile Refinery Mk. CCLXVII 2228 | -7/Zion | Build established: Derelict-Gunner 2241 | -7/Zion | Learned 4 Factory zone layouts 2300 | -7/Zion | Found GAL Module 2329 | -7/Zion | Learned location of Data Miner (-6) 2342 | -7/Zion | Gained Derelict followers 2917 | -7/Zion | Discovered new exit (range 4) 3035 | -7/Zion | Saw the warning signs outside the Deep Caves entrance 3059 | -7/Zion | Entered Deep Caves 3059 | -7/Deep Caves | Accompanied by 3 allies 3157 | -7/Deep Caves | Z-Facility disabled 3229 | -7/Deep Caves | Attacked by Z-Imprinter 3255 | -7/Deep Caves | Core integrity fell below 50% 3271 | -7/Deep Caves | Core integrity fell below 20% 3287 | -7/Deep Caves | Destroyed by Z-Imprinter with Zionite Laser-M Last Messages --------------- 03219_ NEW_ZION: Z-Facility proximity alert. Z-Imprinter: GET AWAY FROM HERE! I've worked too hard for our future just to have you ruin everything! 03233_ 1J-D0B(g) destroyed. 03238_ Wheel destroyed. 03242_ HV Slug penetrates Z-Imprinter. 03242_ Z-Imprinter suffers critical hit (Destroy). 03242_ Destroyed Prototype Device. 03246_ HV Slug penetrates 55-PHG(z). 03249_ 55-PHG(z) suffers critical hit (Destroy). 03249_ 55-PHG(z) destroyed. 03254_ Slug Cannon destroyed. 03257_ Imp. Heat Sink destroyed. 03263_ Acquired Imp. Heat Sink. 03264_ Mni. Grenade Launcher destroyed. 03265_ Ion Engine destroyed. 03268_ 96-DSY(z) destroyed. 03271_ HV Slug penetrates Z-Imprinter. 03274_ Com. Wheel destroyed. 03274_ Bore Cannon destroyed. Map ----- +----------------------------------------------------+ | | | | | | | | | | | | | | | | | | | ?????????????????????????????????????????????????? | | ???????????????####??????????????????????????????? | | ????????????? #?????????????????????????????? | | ??????????? ?????###????????????????????## | | ?????????? ##?### ##?????######????????# | | ?????????? ## # #???### ##???????# | | ????????? ##### #???????# | | ????????? #??????## | | ?????????? #????### | | ??????????? #????## | | ???????????? #????# | | ?????????????""" ##???# | | ????????????"""" ##### | | ?????????""""""" % | | ?????????""" % | | ????????"" ! % I! | | ??????" @%* % [%% #### | | ?????? % % % !! ##??# | | ??????? % ! ????## | | ??????? %% &!! % #??????#### | | ???????? %% / ;#????????? | | ???????? %%% #????????? | | ???????? %%% #????????? | | ????????? % #????????? | | ????????? ##????????? | | ?????????? #?????????? | | ?????????? #????????? | | ??????????? #????????? | | ???????????? ##????????? | | ?????????????? ##?????????? | | ??????????????? #??????????# | | ??????????????? ?????????## | | ????????????????? ????????# | | ??????????????????? #???????# | | ????????????????????? ##???????# | | ??????????????????????? ?????????## | | ?????????????????????????? ?????????????? | | ???????????????????????????? ???????????????? | | ?????????????????????????????????????????????????? | | ?????????????????????????????????????????????????? | | ?????????????????????????????????????????????????? | +----------------------------------------------------+ Best States ------------- Heat Dissipation 42 Energy Generation 14 Energy Capacity 250 Matter Stores 300 Matter Capacity 300 Sight Range 16 Terrain Scan Density 10 Armor Coverage 150 Evasion (%) 44 Targeting Accuracy 5 Item Schematics ----------------- None Robot Schematics ------------------ None Fabricated ------------ Nothing Alien Tech Used ----------------- None Achievements -------------- None Challenges ------------ None Game ------ Seed ScanEnhancedExpander Manual? 0 Play Time 00:37:23 Cumulative 344.0 hours Start 2022.08.19 @ 10:32:12 End 2022.08.19 @ 12:47:36 Sessions 1 Manual Loads 0 Difficulty Rogue Special Mode None Game No. 164 Rogue 160 Adventurer 0 Explorer 4 Win Type - Total 18 Types 4/1/2/4/1/2/3/0/1 Lore% 83 Gallery% 86 Achievement% 78 Wizard Run 0 Options --------- ASCII 0 Keyboard 0 Movement Mouse Keybinds 0 Fullscreen 1 Font 18/SmallcapsGlow Map View 76x50 Tactical HUD 1 Map Filters NONE Filters NONE Steam 1 RUN: 79a9b032-c840-4ed9-be31-c3227ea0ef45